[Event "Titled Tuesday Blitz January 10 Early 2023"]
[White "Bacrot, Etienne"]
[Black "Martinez Ramirez, Lennis"]
[WhiteFideId "605506"]
[BlackFideId "3509079"]
[WhiteElo "2667"]
[BlackElo "2426"]
[Result "1-0"]
[Round "08"]
[TimeControl "180+2"]
[Date "2023.01.10"]
[WhiteClock "0:00:33"]
[BlackClock "0:00:24"]

1. e4 {[%clk 0:03:00]}  c5 {[%clk 0:02:59]} 2. Nf3 {[%clk 0:03:00]}  d6 {[%clk 0:03:00]} 3. d4 {[%clk 0:02:59]}  cxd4 {[%clk 0:03:01]} 4. Nxd4 {[%clk 0:02:59]}  Nf6 {[%clk 0:03:01]} 5. Nc3 {[%clk 0:03:00]}  a6 {[%clk 0:03:02]} 6. Bd3 {[%clk 0:02:59]}  e5 {[%clk 0:02:58]} 7. Nde2 {[%clk 0:02:58]}  b5 {[%clk 0:02:33]} 8. O-O {[%clk 0:02:44]}  Be7 {[%clk 0:02:29]} 9. Ng3 {[%clk 0:02:41]}  b4 {[%clk 0:02:28]} 10. Nce2 {[%clk 0:02:30]}  O-O {[%clk 0:02:27]} 11. f4 {[%clk 0:02:25]}  Nc6 {[%clk 0:02:23]} 12. Kh1 {[%clk 0:02:24]}  a5 {[%clk 0:02:01]} 13. Be3 {[%clk 0:02:21]}  g6 {[%clk 0:01:45]} 14. Qe1 {[%clk 0:02:05]}  Ba6 {[%clk 0:01:32]} 15. Rd1 {[%clk 0:02:02]}  a4 {[%clk 0:01:29]} 16. h3 {[%clk 0:01:51]}  Qb8 {[%clk 0:01:20]} 17. fxe5 {[%clk 0:01:25]}  Nxe5 {[%clk 0:01:20]} 18. Bh6 {[%clk 0:01:20]}  Re8 {[%clk 0:01:19]} 19. Bxa6 {[%clk 0:01:10]}  Rxa6 {[%clk 0:01:20]} 20. Nd4 {[%clk 0:01:08]}  Nfd7 {[%clk 0:01:05]} 21. Ngf5 {[%clk 0:01:02]}  gxf5 {[%clk 0:00:59]} 22. Qg3+ {[%clk 0:01:01]}  Ng6 {[%clk 0:00:58]} 23. exf5 {[%clk 0:01:00]}  Bh4 {[%clk 0:00:51]} 24. Qg4 {[%clk 0:00:47]}  Nf6 {[%clk 0:00:26]} 25. fxg6 {[%clk 0:00:42]}  Nxg4 {[%clk 0:00:26]} 26. gxf7+ {[%clk 0:00:43]}  Kh8 {[%clk 0:00:26]} 27. hxg4 {[%clk 0:00:41]}  Rf8 {[%clk 0:00:24]} 28. Ne6 {[%clk 0:00:33]}  d5 {[%clk 0:00:24]} 29. Bg7# {[%clk 0:00:33]} 1-0


[Site "https://www.chess.com"]

[Event "Titled Tuesday Blitz January 10 Early 2023"]
[White "Kosakowski, Jakub"]
[Black "Dehtiarov, Roman"]
[WhiteFideId "1185080"]
[BlackFideId "14186640"]
[WhiteElo "2485"]
[BlackElo "2289"]
[Result "1-0"]
[Round "08"]
[TimeControl "180+2"]
[Date "2023.01.10"]
[WhiteClock "0:00:12"]
[BlackClock "0:00:04"]

1. e4 {[%clk 0:02:52]}  e5 {[%clk 0:02:59]} 2. Nf3 {[%clk 0:02:52]}  Nc6 {[%clk 0:02:58]} 3. Bb5 {[%clk 0:02:52]}  a6 {[%clk 0:02:58]} 4. Ba4 {[%clk 0:02:52]}  Nf6 {[%clk 0:02:58]} 5. O-O {[%clk 0:02:52]}  Be7 {[%clk 0:02:58]} 6. Re1 {[%clk 0:02:52]}  b5 {[%clk 0:02:59]} 7. Bb3 {[%clk 0:02:52]}  d6 {[%clk 0:02:47]} 8. c3 {[%clk 0:02:52]}  O-O {[%clk 0:02:47]} 9. h3 {[%clk 0:02:53]}  Nb8 {[%clk 0:02:47]} 10. d4 {[%clk 0:02:52]}  Nbd7 {[%clk 0:02:47]} 11. c4 {[%clk 0:02:53]}  b4 {[%clk 0:02:42]} 12. c5 {[%clk 0:02:46]}  exd4 {[%clk 0:02:38]} 13. cxd6 {[%clk 0:02:45]}  Bxd6 {[%clk 0:02:39]} 14. e5 {[%clk 0:02:45]}  Nxe5 {[%clk 0:02:33]} 15. Nxe5 {[%clk 0:02:46]}  c5 {[%clk 0:02:34]} 16. Nd2 {[%clk 0:02:43]}  Bb7 {[%clk 0:02:31]} 17. Ndf3 {[%clk 0:02:36]}  Rc8 {[%clk 0:02:30]} 18. Bg5 {[%clk 0:02:31]}  h6 {[%clk 0:01:25]} 19. Bxf6 {[%clk 0:02:15]}  Qxf6 {[%clk 0:01:26]} 20. Nd7 {[%clk 0:02:15]}  Qf4 {[%clk 0:01:25]} 21. Nxf8 {[%clk 0:02:15]}  Bxf3 {[%clk 0:01:23]} 22. Qxf3 {[%clk 0:02:14]}  Qh2+ {[%clk 0:01:23]} 23. Kf1 {[%clk 0:02:14]}  c4 {[%clk 0:01:23]} 24. Qf5 {[%clk 0:01:52]}  g6 {[%clk 0:00:22]} 25. Qxc8 {[%clk 0:00:53]}  d3 {[%clk 0:00:21]} 26. f3 {[%clk 0:00:39]}  Bg3 {[%clk 0:00:13]} 27. Nd7+ {[%clk 0:00:11]}  Kh7 {[%clk 0:00:10]} 28. Nf6+ {[%clk 0:00:11]}  Kg7 {[%clk 0:00:10]} 29. Ne8+ {[%clk 0:00:11]}  Kh7 {[%clk 0:00:09]} 30. Nf6+ {[%clk 0:00:12]}  Kg7 {[%clk 0:00:09]} 31. Qg8+ {[%clk 0:00:10]}  Kxf6 {[%clk 0:00:09]} 32. Qh8+ {[%clk 0:00:11]}  Kg5 {[%clk 0:00:02]} 33. Qd4 {[%clk 0:00:10]}  Qh1+ {[%clk 0:00:01]} 34. Qg1 {[%clk 0:00:10]}  Qxg1+ {[%clk 0:00:02]} 35. Kxg1 {[%clk 0:00:11]}  cxb3 {[%clk 0:00:01]} 36. axb3 {[%clk 0:00:10]}  Bxe1 {[%clk 0:00:02]} 37. Rxe1 {[%clk 0:00:11]}  Kf4 {[%clk 0:00:03]} 38. Kf2 {[%clk 0:00:11]}  d2 {[%clk 0:00:03]} 39. Re4+ {[%clk 0:00:11]}  Kf5 {[%clk 0:00:02]} 40. Rd4 {[%clk 0:00:12]}  Kf6 {[%clk 0:00:03]} 41. Rxd2 {[%clk 0:00:12]}  Kg7 {[%clk 0:00:04]} 42. Rd4 {[%clk 0:00:12]} 1-0


[Site "https://www.chess.com"]

[Event "Titled Tuesday Blitz January 10 Early 2023"]
[White "Perez Rodriguez, Luis Manuel"]
[Black "Harsh Suresh"]
[WhiteFideId "3503364"]
[BlackFideId "45018464"]
[WhiteElo "2329"]
[BlackElo "2298"]
[Result "1/2-1/2"]
[Round "08"]
[TimeControl "180+2"]
[Date "2023.01.10"]
[WhiteClock "0:02:58"]
[BlackClock "0:00:40"]

1. e4 {[%clk 0:03:00]}  c6 {[%clk 0:02:57]} 2. d4 {[%clk 0:03:00]}  d5 {[%clk 0:02:57]} 3. exd5 {[%clk 0:03:01]}  cxd5 {[%clk 0:02:57]} 4. c4 {[%clk 0:03:01]}  Nf6 {[%clk 0:02:57]} 5. Nc3 {[%clk 0:03:02]}  Nc6 {[%clk 0:02:56]} 6. Nf3 {[%clk 0:03:01]}  Bg4 {[%clk 0:02:55]} 7. cxd5 {[%clk 0:03:01]}  Nxd5 {[%clk 0:02:56]} 8. Qb3 {[%clk 0:03:01]}  Bxf3 {[%clk 0:02:56]} 9. gxf3 {[%clk 0:03:02]}  e6 {[%clk 0:02:56]} 10. Qxb7 {[%clk 0:03:03]}  Nxd4 {[%clk 0:02:56]} 11. Bb5+ {[%clk 0:03:03]}  Nxb5 {[%clk 0:02:57]} 12. Qc6+ {[%clk 0:03:03]}  Ke7 {[%clk 0:02:57]} 13. Qc5+ {[%clk 0:03:04]}  Ke8 {[%clk 0:02:27]} 14. Qc6+ {[%clk 0:03:00]}  Ke7 {[%clk 0:02:24]} 15. Qc5+ {[%clk 0:03:00]}  Ke8 {[%clk 0:00:40]} 16. Qc6+ {[%clk 0:02:58]}  Ke7 {[%clk 0:00:40]} 1/2-1/2


[Site "https://www.chess.com"]

[Event "Titled Tuesday Blitz January 10 Early 2023"]
[White "Galchenko, Matvey"]
[Black "Garakov, Mikhael"]
[WhiteFideId "24175480"]
[BlackFideId "4169034"]
[WhiteElo "2438"]
[BlackElo "2447"]
[Result "1-0"]
[Round "08"]
[TimeControl "180+2"]
[Date "2023.01.10"]
[WhiteClock "0:02:16"]
[BlackClock "0:01:49"]

1. f4 {[%clk 0:02:57]}  d5 {[%clk 0:02:53]} 2. Nf3 {[%clk 0:02:57]}  g6 {[%clk 0:02:48]} 3. g3 {[%clk 0:02:57]}  Bg7 {[%clk 0:02:48]} 4. Bg2 {[%clk 0:02:58]}  c5 {[%clk 0:02:47]} 5. O-O {[%clk 0:02:58]}  Nc6 {[%clk 0:02:47]} 6. d3 {[%clk 0:02:59]}  Bg4 {[%clk 0:02:44]} 7. h3 {[%clk 0:02:52]}  Bxf3 {[%clk 0:02:44]} 8. Bxf3 {[%clk 0:02:53]}  e5 {[%clk 0:02:31]} 9. Nc3 {[%clk 0:02:53]}  Nge7 {[%clk 0:02:30]} 10. e4 {[%clk 0:02:51]}  d4 {[%clk 0:02:23]} 11. Ne2 {[%clk 0:02:46]}  O-O {[%clk 0:02:21]} 12. f5 {[%clk 0:02:40]}  gxf5 {[%clk 0:02:16]} 13. exf5 {[%clk 0:02:41]}  Nxf5 {[%clk 0:02:15]} 14. Bxc6 {[%clk 0:02:41]}  Ne3 {[%clk 0:02:02]} 15. Bxe3 {[%clk 0:02:40]}  dxe3 {[%clk 0:02:03]} 16. Be4 {[%clk 0:02:37]}  Qg5 {[%clk 0:01:59]} 17. Rf5 {[%clk 0:02:28]}  Qh6 {[%clk 0:01:56]} 18. Kg2 {[%clk 0:02:26]}  c4 {[%clk 0:01:52]} 19. Nc3 {[%clk 0:02:19]}  Rad8 {[%clk 0:01:49]} 20. Rh5 {[%clk 0:02:16]} 1-0


[Site "https://www.chess.com"]

[Event "Titled Tuesday Blitz January 10 Early 2023"]
[White "Najdin, Danil"]
[Black "Mikhailovsky, Vladimir"]
[WhiteFideId "4172426"]
[BlackFideId "34105414"]
[WhiteElo "2235"]
[BlackElo "2215"]
[Result "1-0"]
[Round "08"]
[TimeControl "180+2"]
[Date "2023.01.10"]
[WhiteClock "0:00:04"]
[BlackClock "0:00:02"]

1. e4 {[%clk 0:03:00]}  c6 {[%clk 0:02:52]} 2. d4 {[%clk 0:02:52]}  d5 {[%clk 0:02:48]} 3. exd5 {[%clk 0:02:53]}  cxd5 {[%clk 0:02:48]} 4. Bd3 {[%clk 0:02:53]}  Nc6 {[%clk 0:02:48]} 5. c3 {[%clk 0:02:54]}  Nf6 {[%clk 0:02:47]} 6. Bf4 {[%clk 0:02:54]}  Bg4 {[%clk 0:02:44]} 7. Qb3 {[%clk 0:02:52]}  Qc8 {[%clk 0:02:44]} 8. Nd2 {[%clk 0:02:52]}  e6 {[%clk 0:02:44]} 9. Ngf3 {[%clk 0:02:52]}  Be7 {[%clk 0:02:33]} 10. Ne5 {[%clk 0:02:44]}  Nxe5 {[%clk 0:02:28]} 11. Bxe5 {[%clk 0:02:36]}  O-O {[%clk 0:02:27]} 12. O-O {[%clk 0:02:29]}  Bh5 {[%clk 0:02:19]} 13. Rae1 {[%clk 0:02:22]}  Bg6 {[%clk 0:02:13]} 14. Bxg6 {[%clk 0:02:17]}  hxg6 {[%clk 0:02:14]} 15. Bxf6 {[%clk 0:01:36]}  gxf6 {[%clk 0:02:05]} 16. f4 {[%clk 0:01:36]}  Bd6 {[%clk 0:01:55]} 17. g3 {[%clk 0:01:32]}  Kg7 {[%clk 0:01:55]} 18. Kg2 {[%clk 0:01:32]}  Rh8 {[%clk 0:01:52]} 19. Nf3 {[%clk 0:01:29]}  Qc6 {[%clk 0:01:41]} 20. a4 {[%clk 0:01:25]}  a6 {[%clk 0:01:21]} 21. Ra1 {[%clk 0:00:35]}  b5 {[%clk 0:01:19]} 22. Ne1 {[%clk 0:00:33]}  Rab8 {[%clk 0:00:55]} 23. axb5 {[%clk 0:00:23]}  Rxb5 {[%clk 0:00:56]} 24. Qc2 {[%clk 0:00:16]}  Rhb8 {[%clk 0:00:56]} 25. Nd3 {[%clk 0:00:15]}  e5 {[%clk 0:00:27]} 26. fxe5 {[%clk 0:00:15]}  fxe5 {[%clk 0:00:28]} 27. dxe5 {[%clk 0:00:14]}  d4+ {[%clk 0:00:28]} 28. Kg1 {[%clk 0:00:14]}  Bxe5 {[%clk 0:00:12]} 29. c4 {[%clk 0:00:14]}  Bf6 {[%clk 0:00:06]} 30. Qf2 {[%clk 0:00:12]}  Rb3 {[%clk 0:00:05]} 31. Ra3 {[%clk 0:00:06]}  Rxa3 {[%clk 0:00:05]} 32. bxa3 {[%clk 0:00:07]}  Re8 {[%clk 0:00:05]} 33. Nb4 {[%clk 0:00:06]}  Qe6 {[%clk 0:00:04]} 34. Nd5 {[%clk 0:00:06]}  Be5 {[%clk 0:00:04]} 35. Qf3 {[%clk 0:00:04]}  Rc8 {[%clk 0:00:03]} 36. Qe2 {[%clk 0:00:02]}  Qd6 {[%clk 0:00:02]} 37. Re1 {[%clk 0:00:02]}  f6 {[%clk 0:00:02]} 38. Kg2 {[%clk 0:00:02]}  Rd8 {[%clk 0:00:01]} 39. Qd3 {[%clk 0:00:02]}  Rd7 {[%clk 0:00:02]} 40. Rb1 {[%clk 0:00:02]}  Rd8 {[%clk 0:00:03]} 41. Rb6 {[%clk 0:00:02]}  Rd7 {[%clk 0:00:04]} 42. Rxd6 {[%clk 0:00:02]}  Rxd6 {[%clk 0:00:04]} 43. Qe4 {[%clk 0:00:02]}  Rc6 {[%clk 0:00:04]} 44. Ne3 {[%clk 0:00:02]}  Rb6 {[%clk 0:00:03]} 45. Nd5 {[%clk 0:00:01]}  Rb2+ {[%clk 0:00:04]} 46. Kh3 {[%clk 0:00:02]}  Rb3 {[%clk 0:00:03]} 47. Ne7 {[%clk 0:00:02]}  Kf7 {[%clk 0:00:03]} 48. Qd5+ {[%clk 0:00:02]}  Kxe7 {[%clk 0:00:03]} 49. c5 {[%clk 0:00:03]}  Rc3 {[%clk 0:00:04]} 50. c6 {[%clk 0:00:03]}  d3 {[%clk 0:00:04]} 51. Qd7+ {[%clk 0:00:03]}  Kf8 {[%clk 0:00:04]} 52. Qd8+ {[%clk 0:00:03]}  Kf7 {[%clk 0:00:04]} 53. Qd7+ {[%clk 0:00:04]}  Kf8 {[%clk 0:00:04]} 54. Qc8+ {[%clk 0:00:04]}  Kg7 {[%clk 0:00:04]} 55. Qd7+ {[%clk 0:00:04]}  Kh6 {[%clk 0:00:04]} 56. Kg4 {[%clk 0:00:05]}  Rc4+ {[%clk 0:00:04]} 57. Kf3 {[%clk 0:00:05]}  Rc3 {[%clk 0:00:03]} 58. Ke4 {[%clk 0:00:05]}  g5 {[%clk 0:00:01]} 59. Kf5 {[%clk 0:00:05]}  Rc5 {[%clk 0:00:01]} 60. Ke6 {[%clk 0:00:05]}  Bc3 {[%clk 0:00:01]} 61. Qxd3 {[%clk 0:00:05]}  Re5+ {[%clk 0:00:02]} 62. Kf7 {[%clk 0:00:05]}  Ba5 {[%clk 0:00:02]} 63. Qg6# {[%clk 0:00:04]} 1-0


[Site "https://www.chess.com"]

[Event "Titled Tuesday Blitz January 10 Early 2023"]
[White "Harsha Bharathakoti"]
[Black "Jovic, Stanoje"]
[WhiteFideId "5078776"]
[BlackFideId "905020"]
[WhiteElo "2602"]
[BlackElo "2075"]
[Result "0-1"]
[Round "08"]
[TimeControl "180+2"]
[Date "2023.01.10"]
[WhiteClock "0:00:01"]
[BlackClock "0:00:06"]

1. e4 {[%clk 0:03:00]}  c6 {[%clk 0:02:59]} 2. d4 {[%clk 0:02:55]}  d5 {[%clk 0:02:59]} 3. e5 {[%clk 0:02:56]}  c5 {[%clk 0:02:59]} 4. Nf3 {[%clk 0:02:54]}  Nc6 {[%clk 0:02:51]} 5. dxc5 {[%clk 0:02:53]}  Bg4 {[%clk 0:02:46]} 6. Be3 {[%clk 0:02:52]}  e6 {[%clk 0:02:43]} 7. Bb5 {[%clk 0:02:28]}  Ne7 {[%clk 0:02:29]} 8. c3 {[%clk 0:02:23]}  Nf5 {[%clk 0:02:19]} 9. Bd4 {[%clk 0:02:22]}  Rc8 {[%clk 0:02:14]} 10. Nbd2 {[%clk 0:02:07]}  Be7 {[%clk 0:02:04]} 11. h3 {[%clk 0:01:56]}  Bxf3 {[%clk 0:02:03]} 12. Nxf3 {[%clk 0:01:46]}  Nxd4 {[%clk 0:01:59]} 13. Qxd4 {[%clk 0:01:46]}  O-O {[%clk 0:01:57]} 14. Bxc6 {[%clk 0:01:35]}  Rxc6 {[%clk 0:01:55]} 15. b4 {[%clk 0:01:36]}  Qc7 {[%clk 0:01:44]} 16. O-O {[%clk 0:01:34]}  b6 {[%clk 0:01:44]} 17. cxb6 {[%clk 0:01:35]}  axb6 {[%clk 0:01:44]} 18. Rfc1 {[%clk 0:01:31]}  Rc8 {[%clk 0:01:44]} 19. a3 {[%clk 0:00:58]}  b5 {[%clk 0:01:41]} 20. Qd3 {[%clk 0:00:54]}  Rc4 {[%clk 0:01:36]} 21. Nd4 {[%clk 0:00:48]}  Qxe5 {[%clk 0:01:31]} 22. Nxb5 {[%clk 0:00:48]}  h6 {[%clk 0:01:17]} 23. Nd4 {[%clk 0:00:30]}  Bd6 {[%clk 0:01:10]} 24. g3 {[%clk 0:00:30]}  Qh5 {[%clk 0:01:06]} 25. Kg2 {[%clk 0:00:30]}  e5 {[%clk 0:01:04]} 26. Ne2 {[%clk 0:00:30]}  e4 {[%clk 0:00:59]} 27. Qe3 {[%clk 0:00:30]}  g5 {[%clk 0:00:52]} 28. Rd1 {[%clk 0:00:28]}  Qg6 {[%clk 0:00:34]} 29. Rxd5 {[%clk 0:00:27]}  f5 {[%clk 0:00:34]} 30. Rad1 {[%clk 0:00:27]}  f4 {[%clk 0:00:23]} 31. Rxd6 {[%clk 0:00:17]}  Qxd6 {[%clk 0:00:22]} 32. Rxd6 {[%clk 0:00:18]}  fxe3 {[%clk 0:00:22]} 33. fxe3 {[%clk 0:00:19]}  R4c6 {[%clk 0:00:21]} 34. Rxc6 {[%clk 0:00:15]}  Rxc6 {[%clk 0:00:21]} 35. a4 {[%clk 0:00:16]}  Kf7 {[%clk 0:00:21]} 36. a5 {[%clk 0:00:12]}  Ke7 {[%clk 0:00:21]} 37. Kf2 {[%clk 0:00:05]}  Kd7 {[%clk 0:00:19]} 38. Ke1 {[%clk 0:00:06]}  Rf6 {[%clk 0:00:16]} 39. Nd4 {[%clk 0:00:05]}  Kd6 {[%clk 0:00:14]} 40. c4 {[%clk 0:00:06]}  Rf8 {[%clk 0:00:11]} 41. a6 {[%clk 0:00:05]}  Kc7 {[%clk 0:00:10]} 42. c5 {[%clk 0:00:04]}  Kb8 {[%clk 0:00:09]} 43. b5 {[%clk 0:00:04]}  Rf5 {[%clk 0:00:08]} 44. c6 {[%clk 0:00:03]}  Ka7 {[%clk 0:00:08]} 45. c7 {[%clk 0:00:01]}  Rf8 {[%clk 0:00:06]} 0-1


[Site "https://www.chess.com"]

[Event "Titled Tuesday Blitz January 10 Early 2023"]
[White "Movahed, Sina"]
[Black "Volkov, Maksim"]
[WhiteFideId "42520835"]
[BlackFideId "54123070"]
[WhiteElo "2340"]
[BlackElo "2258"]
[Result "1-0"]
[Round "08"]
[TimeControl "180+2"]
[Date "2023.01.10"]
[WhiteClock "0:02:28"]
[BlackClock "0:01:47"]

1. e4 {[%clk 0:03:00]}  c5 {[%clk 0:02:59]} 2. Nf3 {[%clk 0:03:00]}  d6 {[%clk 0:03:00]} 3. d4 {[%clk 0:03:00]}  cxd4 {[%clk 0:03:01]} 4. Nxd4 {[%clk 0:03:01]}  Nf6 {[%clk 0:03:01]} 5. Nc3 {[%clk 0:03:02]}  a6 {[%clk 0:03:02]} 6. Bg5 {[%clk 0:03:02]}  e6 {[%clk 0:03:02]} 7. f4 {[%clk 0:03:02]}  Be7 {[%clk 0:03:03]} 8. Qf3 {[%clk 0:03:02]}  Qc7 {[%clk 0:03:03]} 9. O-O-O {[%clk 0:03:02]}  Nbd7 {[%clk 0:03:03]} 10. Bd3 {[%clk 0:02:58]}  b5 {[%clk 0:03:02]} 11. Rhe1 {[%clk 0:02:58]}  Bb7 {[%clk 0:03:03]} 12. Nd5 {[%clk 0:02:57]}  exd5 {[%clk 0:02:49]} 13. Nf5 {[%clk 0:02:57]}  Bf8 {[%clk 0:02:36]} 14. e5 {[%clk 0:02:53]}  dxe5 {[%clk 0:02:29]} 15. fxe5 {[%clk 0:02:53]}  Ne4 {[%clk 0:02:23]} 16. Bxe4 {[%clk 0:02:28]}  dxe4 {[%clk 0:02:22]} 17. Rxe4 {[%clk 0:02:29]}  Rc8 {[%clk 0:01:47]} 18. Nd6+ {[%clk 0:02:28]} 1-0


[Site "https://www.chess.com"]

[Event "Titled Tuesday Blitz January 10 Early 2023"]
[White "Tologon tegin, Semetei"]
[Black "Ter-Sahakyan, Samvel"]
[WhiteFideId "13800574"]
[BlackFideId "13302531"]
[WhiteElo "2372"]
[BlackElo "2617"]
[Result "0-1"]
[Round "08"]
[TimeControl "180+2"]
[Date "2023.01.10"]
[WhiteClock "0:00:01"]
[BlackClock "0:00:08"]

1. e4 {[%clk 0:02:56]}  c5 {[%clk 0:02:59]} 2. Nf3 {[%clk 0:02:56]}  e6 {[%clk 0:02:59]} 3. d4 {[%clk 0:02:55]}  cxd4 {[%clk 0:03:00]} 4. Nxd4 {[%clk 0:02:55]}  Nf6 {[%clk 0:03:00]} 5. Nc3 {[%clk 0:02:55]}  Nc6 {[%clk 0:03:01]} 6. Nxc6 {[%clk 0:02:54]}  bxc6 {[%clk 0:03:02]} 7. e5 {[%clk 0:02:54]}  Nd5 {[%clk 0:03:02]} 8. Ne4 {[%clk 0:02:54]}  Qc7 {[%clk 0:03:00]} 9. f4 {[%clk 0:02:54]}  Qb6 {[%clk 0:03:00]} 10. Bd3 {[%clk 0:02:52]}  Ba6 {[%clk 0:02:44]} 11. a3 {[%clk 0:02:51]}  Bxd3 {[%clk 0:02:18]} 12. Qxd3 {[%clk 0:02:50]}  f5 {[%clk 0:02:14]} 13. exf6 {[%clk 0:02:43]}  gxf6 {[%clk 0:02:01]} 14. c4 {[%clk 0:02:39]}  f5 {[%clk 0:02:02]} 15. cxd5 {[%clk 0:02:13]}  fxe4 {[%clk 0:02:01]} 16. Qc3 {[%clk 0:02:05]}  Rg8 {[%clk 0:01:59]} 17. Be3 {[%clk 0:02:02]}  Qb5 {[%clk 0:01:54]} 18. dxe6 {[%clk 0:01:59]}  dxe6 {[%clk 0:01:28]} 19. O-O-O {[%clk 0:01:40]}  Rxg2 {[%clk 0:01:13]} 20. Rhg1 {[%clk 0:01:28]}  Rxg1 {[%clk 0:00:20]} 21. Rxg1 {[%clk 0:01:25]}  O-O-O {[%clk 0:00:20]} 22. Bxa7 {[%clk 0:01:14]}  Rd3 {[%clk 0:00:12]} 23. Qf6 {[%clk 0:00:44]}  Qc4+ {[%clk 0:00:12]} 24. Kb1 {[%clk 0:00:43]}  Bxa3 {[%clk 0:00:13]} 25. Bb6 {[%clk 0:00:07]}  Bxb2 {[%clk 0:00:11]} 26. Qf8+ {[%clk 0:00:04]}  Kb7 {[%clk 0:00:09]} 27. Rg7+ {[%clk 0:00:02]}  Kxb6 {[%clk 0:00:09]} 28. Qb8+ {[%clk 0:00:01]}  Kc5 {[%clk 0:00:09]} 29. Qa7+ {[%clk 0:00:01]}  Kb4 {[%clk 0:00:08]} 30. Qb6+ {[%clk 0:00:01]}  Qb5 {[%clk 0:00:08]} 0-1


[Site "https://www.chess.com"]

[Event "Titled Tuesday Blitz January 10 Early 2023"]
[White "Indjic, Aleksandar"]
[Black "Hamley, Ryan"]
[WhiteFideId "911925"]
[BlackFideId "30959497"]
[WhiteElo "2618"]
[BlackElo "2092"]
[Result "1/2-1/2"]
[Round "08"]
[TimeControl "180+2"]
[Date "2023.01.10"]
[WhiteClock "0:00:23"]
[BlackClock "0:00:32"]

1. e3 {[%clk 0:03:00]}  g6 {[%clk 0:02:56]} 2. h4 {[%clk 0:02:57]}  h5 {[%clk 0:02:54]} 3. c4 {[%clk 0:02:56]}  Bg7 {[%clk 0:02:54]} 4. Nc3 {[%clk 0:02:56]}  c5 {[%clk 0:02:54]} 5. Nh3 {[%clk 0:02:56]}  Nc6 {[%clk 0:02:54]} 6. Nf4 {[%clk 0:02:57]}  d6 {[%clk 0:02:50]} 7. g3 {[%clk 0:02:57]}  Nf6 {[%clk 0:02:50]} 8. Bg2 {[%clk 0:02:56]}  O-O {[%clk 0:02:49]} 9. d3 {[%clk 0:02:56]}  Bg4 {[%clk 0:02:41]} 10. Bf3 {[%clk 0:02:52]}  Bxf3 {[%clk 0:02:39]} 11. Qxf3 {[%clk 0:02:51]}  e6 {[%clk 0:02:40]} 12. Bd2 {[%clk 0:02:33]}  d5 {[%clk 0:02:36]} 13. Rd1 {[%clk 0:02:31]}  d4 {[%clk 0:02:34]} 14. Ne4 {[%clk 0:02:19]}  Nxe4 {[%clk 0:02:33]} 15. Qxe4 {[%clk 0:02:15]}  dxe3 {[%clk 0:02:34]} 16. fxe3 {[%clk 0:02:15]}  Ne5 {[%clk 0:02:14]} 17. Bc3 {[%clk 0:01:58]}  Ng4 {[%clk 0:02:14]} 18. Bxg7 {[%clk 0:01:56]}  Kxg7 {[%clk 0:02:15]} 19. O-O {[%clk 0:01:55]}  Qc7 {[%clk 0:02:04]} 20. b3 {[%clk 0:01:53]}  Rad8 {[%clk 0:02:03]} 21. Rd2 {[%clk 0:01:52]}  Qe5 {[%clk 0:01:56]} 22. Qxe5+ {[%clk 0:01:50]}  Nxe5 {[%clk 0:01:57]} 23. d4 {[%clk 0:01:49]}  Ng4 {[%clk 0:01:57]} 24. Ng2 {[%clk 0:01:45]}  Rd7 {[%clk 0:01:56]} 25. Rfd1 {[%clk 0:01:43]}  Rfd8 {[%clk 0:01:57]} 26. Kf1 {[%clk 0:01:44]}  Kf6 {[%clk 0:01:45]} 27. Ke2 {[%clk 0:01:43]}  Ke7 {[%clk 0:01:45]} 28. dxc5 {[%clk 0:01:42]}  Rxd2+ {[%clk 0:01:39]} 29. Rxd2 {[%clk 0:01:43]}  Rc8 {[%clk 0:01:40]} 30. b4 {[%clk 0:01:41]}  Ne5 {[%clk 0:01:40]} 31. Rc2 {[%clk 0:01:39]}  a5 {[%clk 0:01:40]} 32. a3 {[%clk 0:01:39]}  Nc6 {[%clk 0:01:40]} 33. Rb2 {[%clk 0:01:29]}  axb4 {[%clk 0:01:40]} 34. axb4 {[%clk 0:01:30]}  Ne5 {[%clk 0:01:41]} 35. Rc2 {[%clk 0:01:25]}  Nc6 {[%clk 0:01:40]} 36. Nf4 {[%clk 0:01:12]}  Nxb4 {[%clk 0:01:37]} 37. Rb2 {[%clk 0:01:13]}  Na6 {[%clk 0:01:37]} 38. Rxb7+ {[%clk 0:01:13]}  Kf6 {[%clk 0:01:38]} 39. Nd3 {[%clk 0:01:13]}  Nxc5 {[%clk 0:01:38]} 40. Nxc5 {[%clk 0:01:13]}  Rxc5 {[%clk 0:01:39]} 41. Kd3 {[%clk 0:01:14]}  e5 {[%clk 0:01:35]} 42. e4 {[%clk 0:01:08]}  Ra5 {[%clk 0:01:33]} 43. Kc3 {[%clk 0:01:06]}  Ra3+ {[%clk 0:01:33]} 44. Kb4 {[%clk 0:00:57]}  Rxg3 {[%clk 0:01:33]} 45. c5 {[%clk 0:00:58]}  Ke6 {[%clk 0:01:25]} 46. Kb5 {[%clk 0:00:35]}  f5 {[%clk 0:01:17]} 47. exf5+ {[%clk 0:00:26]}  gxf5 {[%clk 0:01:18]} 48. Rh7 {[%clk 0:00:25]}  e4 {[%clk 0:01:16]} 49. c6 {[%clk 0:00:24]}  Rb3+ {[%clk 0:01:13]} 50. Kc4 {[%clk 0:00:24]}  Rb1 {[%clk 0:01:13]} 51. c7 {[%clk 0:00:24]}  Rc1+ {[%clk 0:01:13]} 52. Kd4 {[%clk 0:00:23]}  Kd6 {[%clk 0:01:13]} 53. Rxh5 {[%clk 0:00:23]}  Rd1+ {[%clk 0:00:45]} 54. Ke3 {[%clk 0:00:21]}  Rd3+ {[%clk 0:00:45]} 55. Ke2 {[%clk 0:00:21]}  Kxc7 {[%clk 0:00:42]} 56. Rxf5 {[%clk 0:00:21]}  Kd6 {[%clk 0:00:35]} 57. h5 {[%clk 0:00:22]}  Ke6 {[%clk 0:00:35]} 58. Ra5 {[%clk 0:00:21]}  Rh3 {[%clk 0:00:33]} 59. h6 {[%clk 0:00:21]}  Kf7 {[%clk 0:00:34]} 60. Ra6 {[%clk 0:00:21]}  Kg8 {[%clk 0:00:32]} 61. Re6 {[%clk 0:00:20]}  Kh7 {[%clk 0:00:32]} 62. Kf2 {[%clk 0:00:20]}  Rxh6 {[%clk 0:00:31]} 63. Rxh6+ {[%clk 0:00:21]}  Kxh6 {[%clk 0:00:32]} 64. Ke3 {[%clk 0:00:22]}  Kg5 {[%clk 0:00:32]} 65. Kxe4 {[%clk 0:00:23]} 1/2-1/2


[Site "https://www.chess.com"]